bitfinex-derivatives/quotes_SOLF0:USTF0_20250516
["timestamp","ask_amount","ask_price","bid_price","bid_amount"]
[1747422481410,65.1551,170.73,170.65,5.44726362]
[1747422481603,5.8552,170.72,170.65,5.44726362]
[1747422481910,5.8552,170.72,170.7,5.8559]
[1747422482113,5.8552,170.72,170.71,4.98502678]
[1747422483413,59.3,170.73,170.69,5.8561]
[1747422483414,5.8555,170.71,170.69,5.8561]
[1747422483711,59.38,170.71,170.67,5.8568]
[1747422483904,5.8561,170.7,170.67,5.8568]
[1747422484307,5.8561,170.7,170.68,5.8565]
[1747422484506,65.2357,170.71,170.68,4.98554552]
[1747422484710,59.38,170.71,170.68,4.98554552]
[1747422485204,65.1549,170.73,170.71,5.8555]
[1747422485711,59.3,170.73,170.72,5.8552]
[1747422487303,59.3,170.73,170.71,5.8554]
[1747422487610,59.3,170.73,170.65,5.44726362]
[1747422488104,65.2345,170.74,170.65,5.44726362]
[1747422488310,59.3,170.73,170.66,10.43163932]
[1747422488912,65.1548,170.73,170.66,10.43163932]
[1747422489207,65.1548,170.73,170.67,4.9843757]
[1747422489410,59.3,170.73,170.71,5.8553]
[1747422489709,59.3,170.73,170.67,4.9843757]
[1747422489910,59.3,170.73,170.72,5.8552]
[1747422490408,59.3,170.73,170.72,10.8395757]
[1747422490611,59.3,170.73,170.72,4.9843757]
[1747422490808,65.1548,170.73,170.72,4.9843757]
[1747422491111,65.1548,170.73,170.71,5.8555]
[1747422492222,65.1548,170.73,170.7,5.8557]
[1747422492511,5.8555,170.72,170.66,5.44726362]
[1747422492712,59.3,170.73,170.68,5.8563]
[1747422492906,59.3,170.73,170.66,5.44726362]
[1747422493310,5.8565,170.69,170.66,11.30426362]
[1747422493516,59.28,170.68,170.66,11.30426362]
[1747422493710,59.28,170.68,170.67,4.98436468]
[1747422493911,65.1369,170.68,170.67,4.98436468]
[1747422494614,59.28,170.68,170.67,4.98436468]
[1747422495018,59.28,170.68,170.67,10.84126468]
[1747422495609,59.28,170.68,170.67,4.98436468]
[1747422498219,65.1365,170.68,170.67,4.98436468]
[1747422498720,59.28,170.68,170.67,4.98436468]
[1747422500317,65.1365,170.68,170.67,4.98436468]
[1747422500519,64.9961,170.68,170.64,5.44726362]
[1747422500921,5.8576,170.65,170.64,5.44726362]
[1747422501121,59.28,170.65,170.61,7.26301816]
[1747422501319,59.28,170.64,170.55,151.31098807]
[1747422501520,5.8585,170.63,170.6,5.8592]
[1747422501727,59.28,170.64,170.55,151.31098807]
[1747422501913,5.8594,170.6,170.55,92.03098807]
[1747422502118,59.3,170.6,170.55,7.26301816]
[1747422502522,65.1594,170.6,170.57,5.8601]
[1747422503824,59.3,170.6,170.58,5.86]
[1747422504421,59.3,170.6,170.53,2.0063]
[1747422504422,65.1594,170.6,170.57,5.8602]
[1747422504720,65.1594,170.6,170.53,2.0063]
[1747422505118,59.3,170.6,170.53,2.0063]
[1747422506720,65.1593,170.6,170.53,2.0063]
[1747422507527,59.3,170.6,170.5,7.26301816]
[1747422507714,1.8293,170.59,170.5,7.26301816]
[1747422509128,1.8293,170.59,170.56,5.8604]
[1747422509727,65.1596,170.6,170.57,5.8603]
[1747422510228,59.3,170.6,170.5,18.0260684]
[1747422510422,59.3,170.6,170.58,5.8598]
[1747422511925,59.3,170.6,170.59,5.8596]
[1747422513329,59.3,170.6,170.51,59.32]
[1747422513829,59.3,170.6,170.57,5.86]
[1747422514030,5.8598,170.59,170.51,59.32]
[1747422514234,59.3,170.6,170.51,59.32]
[1747422514423,59.3,170.6,170.56,5.8605]
[1747422514926,5.8597,170.59,170.56,5.8605]
[1747422515126,59.3,170.6,170.57,5.8603]
[1747422515928,65.1594,170.6,170.57,5.8603]
[1747422517829,59.28,170.61,170.5,1.8367]
[1747422518130,59.32,170.6,170.5,1.8367]
[1747422518430,59.32,170.6,170.58,5.8598]
[1747422524438,10.76305024,170.66,170.53,70.06305024]
[1747422524626,10.76305024,170.66,170.53,73.85385024]
[1747422524627,118.62,170.65,170.53,73.85385024]
[1747422524832,59.32,170.64,170.54,4.9181007]
[1747422525034,65.178,170.64,170.61,5.8588]
[1747422526245,5.8583,170.63,170.61,5.8588]
[1747422526537,59.32,170.64,170.61,5.8588]
[1747422526734,59.3,170.65,170.55,4.9181007]
[1747422526933,59.3,170.64,170.56,6.9432007]
[1747422527739,59.3,170.63,170.56,6.9432007]
[1747422527941,59.3,170.64,170.56,6.9432007]
[1747422528140,59.3,170.64,170.57,4.9181007]
[1747422528533,59.3,170.64,170.57,64.2181007]
[1747422528940,59.3,170.64,170.63,5.8583]
[1747422529441,5.8574,170.66,170.63,5.8583]
[1747422529640,59.3,170.65,170.63,5.8583]
[1747422529840,5.8574,170.66,170.63,5.8583]
[1747422530039,59.3,170.64,170.63,5.8583]
[1747422530236,5.8574,170.66,170.64,5.8578]
[1747422530633,59.3,170.65,170.64,5.8578]
[1747422530940,59.3,170.65,170.63,5.8581]
[1747422531140,59.3,170.65,170.57,59.3]
[1747422531333,59.3,170.65,170.58,4.92040977]
[1747422531740,5.8582,170.64,170.58,4.92040977]
[1747422531938,59.3,170.65,170.58,4.92040977]
[1747422532243,5.8584,170.63,170.61,5.8588]
[1747422532846,59.3,170.65,170.56,2.0251]
[1747422533445,59.3,170.66,170.56,2.0251]
[1747422533446,5.8574,170.66,170.63,5.858]
[1747422533742,59.3,170.65,170.63,5.858]
[1747422533934,59.3,170.65,170.57,4.92372053]
[1747422534136,65.1578,170.65,170.62,5.8585]
[1747422534337,59.3,170.64,170.62,5.8585]
[1747422534532,59.3,170.63,170.62,5.8585]
[1747422535350,59.3,170.63,170.6,5.859]
[1747422535646,65.1584,170.63,170.6,5.859]
[1747422535949,65.1584,170.63,170.61,4.92766852]
[1747422537149,65.1584,170.63,170.62,4.92766852]
[1747422539750,59.3,170.63,170.62,10.78626852]
[1747422540851,1.91,170.67,170.63,5.8582]
[1747422541053,124.4374,170.66,170.62,4.92766852]
[1747422541245,118.58,170.66,170.62,4.92766852]
[1747422541749,118.58,170.66,170.56,2.0251]
[1747422541949,118.58,170.66,170.63,5.8581]
[1747422542451,5.8577,170.65,170.63,5.8581]
[1747422543549,124.4374,170.66,170.63,5.8581]
[1747422544252,59.28,170.65,170.62,5.8585]
[1747422544461,59.28,170.65,170.55,7.26301816]
[1747422544758,10.76305024,170.62,170.59,7.26301816]
[1747422545050,118.58,170.61,170.56,10.89452725]
[1747422545251,10.76305024,170.59,170.56,10.89452725]
[1747422545452,5.8603,170.57,170.56,10.89452725]
[1747422545655,65.1403,170.57,170.56,16.24318568]
[1747422545855,124.4403,170.57,170.56,16.24318568]
[1747422547057,124.4403,170.57,170.56,5.34865843]
[1747422547450,118.58,170.57,170.51,5.8623]
[1747422548561,5.8614,170.54,170.51,5.8623]
[1747422548755,59.28,170.53,170.51,5.8623]
[1747422548951,59.28,170.53,170.52,5.862]
[1747422550759,59.28,170.53,170.45,70.19452725]
[1747422550959,65.1621,170.52,170.45,72.21092725]
[1747422551261,59.3,170.52,170.48,5.8632]
[1747422551465,5.8626,170.51,170.48,5.8632]
[1747422552065,65.1622,170.52,170.48,5.8632]
[1747422552664,65.1622,170.52,170.49,5.8629]
[1747422552867,59.3,170.52,170.45,2.0164]
[1747422553161,59.3,170.52,170.47,5.8635]
[1747422553667,10.76305024,170.5,170.42,10.89452725]
[1747422553856,5.8635,170.48,170.44,5.8646]
[1747422554055,59.28,170.47,170.42,10.89452725]
[1747422554764,65.1439,170.47,170.43,5.8651]
[1747422554969,59.28,170.47,170.42,10.89452725]
[1747422555353,5.8643,170.46,170.42,5.8654]
[1747422555564,59.28,170.45,170.39,59.28]
[1747422555765,59.28,170.45,170.37,16.60245024]
[1747422555961,59.28,170.45,170.43,5.8649]
[1747422556463,59.28,170.45,170.37,5.8394]
[1747422557068,65.1445,170.45,170.41,5.8655]
[1747422557254,65.1445,170.45,170.37,5.8394]
[1747422558361,59.28,170.45,170.37,5.8394]
[1747422558560,59.28,170.45,170.44,5.8648]
[1747422560365,59.28,170.47,170.45,5.8644]
[1747422560567,59.3,170.46,170.45,5.8644]
[1747422560762,3.6956,170.51,170.37,75.90245024]
[1747422560961,118.6,170.5,170.49,5.8629]
[1747422561559,118.6,170.5,170.41,118.6]
[1747422561560,10.76305024,170.56,170.52,5.8619]
[1747422561776,118.6,170.55,170.52,5.8619]
[1747422561963,59.3,170.55,170.45,59.3]
[1747422562155,59.3,170.54,170.53,5.8615]
[1747422563665,59.3,170.55,170.54,5.8614]
[1747422564064,59.3,170.56,170.53,5.27940905]
[1747422564266,59.3,170.56,170.55,5.861]
[1747422565769,59.3,170.56,170.49,59.3]
[1747422566266,70.06305024,170.56,170.48,5.43465856]
[1747422566671,5.8623,170.52,170.49,11.13569254]
[1747422566871,59.3,170.51,170.49,5.27269254]
[1747422567171,5.8627,170.5,170.49,5.27269254]
[1747422568377,59.3,170.51,170.46,1.8266]
[1747422568570,59.3,170.51,170.42,7.36535856]
[1747422569274,59.3,170.51,170.44,5.8647]
[1747422569566,59.3,170.51,170.43,5.27197987]
[1747422569765,5.8633,170.49,170.45,5.8641]
[1747422569968,59.3,170.48,170.45,5.8641]
[1747422570273,59.3,170.47,170.44,5.8647]
[1747422571569,65.1638,170.47,170.44,5.8647]
[1747422571871,65.1638,170.47,170.45,5.26830427]
[1747422573180,59.3,170.47,170.45,5.26830427]
[1747422573470,59.3,170.49,170.42,1.9307]
[1747422573876,59.3,170.49,170.47,5.8636]
[1747422574270,59.3,170.49,170.42,1.9307]
[1747422574668,59.3,170.49,170.43,5.26894018]
[1747422575777,59.3,170.49,170.48,5.8634]
[1747422575976,59.3,170.52,170.43,64.56894018]
[1747422576181,59.3,170.51,170.43,75.33199042]
[1747422576476,59.3,170.51,170.5,5.8627]
[1747422577972,59.3,170.53,170.44,11.7296]
[1747422578173,59.3,170.53,170.46,10.76305024]
[1747422578480,59.3,170.57,170.56,5.8606]
[1747422578779,118.6,170.57,170.56,5.8606]
[1747422579369,118.6,170.57,170.55,5.8609]
[1747422579574,118.6,170.57,170.5,3.9083]
[1747422579982,124.4606,170.57,170.53,5.8614]
[1747422580284,118.6,170.57,170.53,5.8614]
[1747422581183,118.6,170.57,170.5,1.9972]
[1747422581780,5.8616,170.54,170.51,5.8622]
[1747422581971,59.28,170.53,170.51,5.8622]
[1747422583377,65.1419,170.53,170.5,5.8626]
[1747422583680,118.54,170.53,170.46,1.9438]
[1747422583982,5.8624,170.51,170.49,5.863]
[1747422584388,5.8624,170.51,170.48,5.8633]
[1747422584991,5.8622,170.52,170.49,5.863]
[1747422585179,5.8622,170.52,170.5,5.28244221]
[1747422585594,5.8622,170.52,170.5,11.14514221]
[1747422585892,124.4019,170.53,170.5,11.14514221]
[1747422586092,118.54,170.53,170.5,11.14514221]
[1747422586293,118.54,170.53,170.51,5.28244221]
[1747422586788,124.4018,170.53,170.51,5.28244221]
[1747422586987,118.54,170.53,170.51,5.28244221]
[1747422587188,118.54,170.53,170.52,5.28244221]
[1747422587489,118.54,170.53,170.52,11.14444221]
[1747422587890,59.26,170.53,170.52,11.14444221]
[1747422588093,118.54,170.53,170.52,11.14444221]
[1747422589288,59.26,170.53,170.52,11.14444221]
[1747422589594,118.54,170.53,170.52,11.14444221]
[1747422589988,59.28,170.54,170.52,5.28244221]
[1747422590188,59.28,170.55,170.52,5.28244221]
[1747422590690,59.28,170.55,170.54,5.8614]
[1747422590994,118.54,170.56,170.53,5.28244221]
[1747422591493,118.54,170.56,170.55,5.861]
[1747422592195,118.54,170.56,170.55,11.14344221]
[1747422595507,59.26,170.56,170.55,11.14344221]
[1747422595802,59.26,170.57,170.56,5.8607]
[1747422596302,5.8595,170.6,170.58,5.86]
[1747422596701,59.26,170.59,170.58,5.86]
[1747422597205,59.26,170.59,170.58,5.28244221]
[1747422597906,59.26,170.6,170.59,5.8596]
[1747422598090,118.52,170.6,170.59,5.8596]
[1747422598596,118.52,170.6,170.59,11.14204221]
[1747422598797,59.26,170.6,170.59,5.28244221]
[1747422598998,118.52,170.6,170.59,5.28244221]
[1747422599807,115.0384826,170.65,170.59,5.28244221]
[1747422600105,59.26,170.64,170.59,5.28244221]
[1747422600503,5.859,170.61,170.59,5.28244221]
[1747422601208,5.859,170.61,170.6,5.28244221]
[1747422601509,5.8588,170.62,170.6,5.28244221]
[1747422601810,5.8588,170.62,170.61,5.28244221]
[1747422602411,5.8585,170.63,170.61,5.28244221]
[1747422603108,5.8585,170.63,170.62,5.28244221]
[1747422604808,59.26,170.64,170.62,11.14084221]
[1747422605312,65.1181,170.64,170.62,5.28244221]
[1747422605514,59.26,170.64,170.63,5.28244221]
[1747422606411,174.2984826,170.65,170.63,5.28244221]
[1747422606711,65.0979,170.64,170.63,5.28244221]
[1747422607009,65.0979,170.64,170.61,5.8588]
[1747422608104,65.0979,170.64,170.62,5.28513512]
[1747422609009,5.8585,170.63,170.57,5.43465856]
[1747422609307,59.24,170.64,170.57,5.43465856]
[1747422609714,5.8584,170.63,170.6,5.8591]
[1747422609915,59.24,170.64,170.57,5.43465856]
[1747422610121,59.24,170.64,170.58,5.28220653]
[1747422610316,5.8584,170.63,170.6,5.8591]
[1747422610816,59.24,170.64,170.58,5.28220653]
[1747422611019,59.24,170.67,170.58,16.04525677]
[1747422611317,118.46,170.67,170.59,5.28220653]
[1747422611510,124.3169,170.67,170.65,5.8575]
[1747422611812,59.24,170.67,170.6,1.9696]
[1747422612019,59.24,170.67,170.66,5.8572]
[1747422612517,59.24,170.67,170.66,11.13940653]
[1747422615217,59.2,170.69,170.66,5.28220653]
[1747422616622,59.2,170.69,170.68,5.8565]
[1747422617921,565.66,170.74,170.61,131.06025024]
[1747422618109,59.2,170.73,170.64,10.76305024]
[1747422618314,59.2,170.73,170.72,5.8549]
[1747422619116,59.18,170.76,170.67,10.76305024]
[1747422619311,118.38,170.76,170.68,5.7942]
[1747422619516,118.38,170.76,170.69,59.18]
[1747422620722,118.38,170.76,170.75,5.8541]
[1747422623524,118.38,170.76,170.74,5.8543]
[1747422623721,118.38,170.76,170.69,59.18]
[1747422624027,118.38,170.76,170.75,5.8541]
[1747422625017,59.18,170.78,170.77,5.8534]
[1747422625322,59.18,170.79,170.77,5.8534]
[1747422625534,118.34,170.79,170.77,5.8534]
[1747422625827,118.34,170.79,170.78,5.8531]
[1747422626823,59.18,170.79,170.78,5.8531]
[1747422627023,565.54,170.82,170.81,5.8521]
[1747422627325,118.34,170.82,170.81,5.8521]
[1747422627828,59.16,170.85,170.77,59.16]
[1747422628023,59.16,170.85,170.78,5.803]
[1747422628327,59.16,170.86,170.78,5.803]
[1747422628532,118.32,170.86,170.78,5.803]
[1747422630030,124.1704,170.86,170.78,5.803]
[1747422630431,118.32,170.86,170.78,5.803]
[1747422630731,118.32,170.86,170.84,5.8508]
[1747422631630,118.32,170.86,170.78,5.803]
[1747422631934,59.14,170.88,170.79,10.76305024]
[1747422632232,118.3,170.89,170.87,5.8497]
[1747422632423,118.3,170.89,170.81,59.16]
[1747422632730,118.3,170.89,170.87,5.8498]
[1747422633133,118.3,170.89,170.81,59.16]
[1747422633325,5.8498,170.88,170.85,5.8507]
[1747422633527,5.8498,170.88,170.64,16.52386758]
[1747422633528,10.76305024,170.87,170.69,172.16890929]
[1747422633729,10.76305024,170.82,170.7,5.9216]
[1747422633929,5.8526,170.8,170.76,5.8535]
[1747422634633,5.8528,170.79,170.76,5.8535]
[1747422635030,5.8527,170.8,170.7,5.9216]
[1747422635435,5.8527,170.8,170.76,5.8536]
[1747422635730,5.8527,170.8,170.78,7.18880443]
[1747422636130,5.8528,170.79,170.78,7.18880443]
[1747422637028,5.8538,170.76,170.75,10.78320665]
[1747422637229,129.38305024,170.76,170.69,14.37760887]
[1747422637737,5.8551,170.73,170.69,14.37760887]
[1747422637932,59.48,170.72,170.69,14.37760887]
[1747422638234,65.3352,170.72,170.69,14.37760887]
[1747422638436,65.3352,170.72,170.7,5.15191169]
[1747422639140,59.48,170.72,170.7,11.00771169]
[1747422639626,59.48,170.72,170.7,5.8558]
[1747422640232,59.48,170.72,170.66,1.9041]
[1747422640735,65.3352,170.72,170.66,1.9041]
[1747422641236,59.48,170.72,170.66,1.9041]
[1747422641840,65.3352,170.72,170.66,1.9041]
[1747422642039,59.14,170.76,170.66,1.9041]
[1747422642335,59.38,170.75,170.66,1.9041]
[1747422642532,59.38,170.75,170.72,5.8549]
[1747422643140,59.36,170.75,170.72,5.8549]
[1747422643329,65.2142,170.75,170.72,5.8549]
[1747422643637,59.36,170.75,170.68,59.16]
[1747422644732,59.36,170.75,170.72,5.855]
[1747422646235,59.36,170.75,170.68,59.16]
[1747422646738,5.8551,170.73,170.7,5.8558]
[1747422647245,5.8556,170.71,170.68,65.0165]
[1747422647428,5.8556,170.71,170.68,5.8565]
[1747422647739,65.1756,170.71,170.68,5.8565]
[1747422648035,5.8559,170.7,170.67,5.8568]
[1747422649236,5.8559,170.7,170.65,63.1455]
[1747422649237,59.32,170.71,170.65,1.8353]
[1747422649739,5.8568,170.68,170.65,7.6927]
[1747422650039,59.32,170.71,170.62,61.2263]
[1747422650539,59.32,170.71,170.65,5.8576]
[1747422651044,5.8564,170.69,170.66,5.857]
[1747422651341,59.32,170.71,170.68,5.17490844]
[1747422651938,5.8562,170.7,170.68,5.17490844]
[1747422652138,59.32,170.71,170.68,5.17490844]
[1747422652945,5.8562,170.69,170.68,5.17490844]
[1747422653241,5.8562,170.69,170.66,11.2792578]
[1747422653844,5.8562,170.69,170.66,5.857]
[1747422654445,59.32,170.68,170.53,59.32]
[1747422654646,59.8,170.67,170.54,1.8313]
[1747422656144,5.8582,170.64,170.6,5.859]
[1747422656345,59.76,170.63,170.6,5.859]
[1747422656948,59.76,170.63,170.61,5.8589]
[1747422657248,59.76,170.63,170.54,1.8313]
[1747422657843,65.6185,170.63,170.6,5.8592]
[1747422658149,65.6185,170.63,170.54,1.8313]
[1747422658350,5.8587,170.62,170.58,5.8598]
[1747422658550,5.8587,170.62,170.54,1.8313]
[1747422658846,65.6183,170.63,170.54,1.8313]
[1747422659052,59.76,170.63,170.54,1.8313]
[1747422659259,59.76,170.63,170.55,59.7]
[1747422659550,17.23280813,170.72,170.55,59.7]
[1747422659953,5.8564,170.69,170.65,5.8574]
[1747422660147,119.04,170.71,170.65,5.8574]
[1747422660950,59.32,170.71,170.66,5.857]
[1747422661155,59.74,170.7,170.59,119.06]
[1747422661461,65.5961,170.7,170.66,5.857]
[1747422662155,5.8563,170.69,170.65,5.8575]
[1747422662357,59.74,170.7,170.65,5.8575]
[1747422662855,5.8563,170.69,170.65,5.8575]
[1747422663257,5.8563,170.69,170.66,5.8571]
[1747422663459,65.596,170.7,170.61,5.6303]
[1747422663954,65.596,170.7,170.66,5.857]
[1747422664153,59.74,170.7,170.61,5.6303]
[1747422664356,59.74,170.7,170.64,5.8577]
[1747422664654,5.8568,170.68,170.61,5.6303]
[1747422664958,5.8568,170.68,170.64,5.8576]
[1747422665154,5.8563,170.69,170.61,5.6303]
[1747422665358,59.74,170.7,170.61,5.6303]
[1747422665557,59.74,170.7,170.66,5.857]
[1747422665858,65.596,170.7,170.61,5.6303]
[1747422666059,65.596,170.7,170.66,5.8569]
[1747422666761,59.74,170.7,170.65,5.8575]
[1747422666962,59.74,170.7,170.61,3.7239]
[1747422668054,59.74,170.7,170.59,59.32]
[1747422668255,10.7741186,170.65,170.56,3.8497]
[1747422668456,119.06,170.64,170.61,5.42800026]
[1747422668656,119.06,170.64,170.62,5.18036679]
[1747422669566,119.06,170.64,170.62,5.8586]
[1747422670165,119.06,170.64,170.61,5.42800026]
[1747422670465,119.06,170.64,170.58,7.23733368]
[1747422671171,124.918,170.64,170.58,7.23733368]
[1747422671565,119.06,170.64,170.58,7.23733368]
[1747422672371,5.8589,170.62,170.59,5.8596]
[1747422672668,119.06,170.64,170.58,7.23733368]
[1747422672971,119.06,170.64,170.61,5.8587]
[1747422673666,5.8585,170.63,170.6,5.8592]
[1747422673869,119.06,170.64,170.56,3.8497]
[1747422674166,119.06,170.64,170.59,5.8594]
[1747422674368,119.06,170.64,170.56,3.8497]
[1747422674670,5.8588,170.62,170.59,5.8594]
[1747422675273,5.859,170.61,170.59,5.8594]
[1747422675879,5.8585,170.63,170.59,5.8594]
[1747422676075,119.06,170.64,170.56,3.8497]
[1747422676268,119.06,170.64,170.55,59.32]
[1747422676573,119.06,170.64,170.53,84.76999545]
[1747422676770,119.06,170.64,170.56,5.8605]
[1747422676973,5.8597,170.59,170.56,5.8605]
[1747422677274,59.7,170.58,170.56,5.8605]
[1747422677473,59.7,170.58,170.57,5.8603]
[1747422677776,17.2479696,170.68,170.53,84.76999545]
[1747422678073,119.42,170.67,170.63,5.858]
[1747422678273,59.7,170.67,170.56,59.7]
[1747422678475,59.7,170.67,170.64,5.8577]
[1747422678476,59.76,170.66,170.64,5.8577]
[1747422678975,59.76,170.66,170.57,3.7128]
[1747422679978,5.8578,170.65,170.57,3.7128]
[1747422680175,59.76,170.66,170.57,3.7128]
[1747422680475,5.8577,170.65,170.62,5.8584]
[1747422680675,59.76,170.66,170.57,3.7128]
[1747422681885,5.8576,170.65,170.62,5.8584]
[1747422683077,65.6174,170.66,170.63,5.8581]
[1747422683879,5.8576,170.65,170.63,5.8581]
[1747422684382,59.66,170.64,170.57,3.7128]
[1747422684684,59.72,170.65,170.57,3.7128]
[1747422684876,59.72,170.65,170.64,5.8579]
[1747422686383,59.72,170.65,170.63,5.8581]
[1747422686576,59.72,170.65,170.57,3.7128]
[1747422686883,59.72,170.65,170.64,5.8579]
[1747422689280,65.557,170.67,170.64,5.8579]
[1747422689483,65.4572,170.66,170.64,5.8579]
[1747422690179,65.4572,170.66,170.64,11.05435084]
[1747422692088,5.8576,170.65,170.64,5.19645084]
[1747422692693,5.8586,170.62,170.61,5.45229766]
[1747422692881,125.0986,170.62,170.61,5.45229766]
[1747422698192,119.24,170.62,170.61,5.45229766]
[1747422698694,125.0986,170.62,170.61,5.45229766]
[1747422701496,5.8591,170.61,170.59,13.12913021]
[1747422701699,5.8591,170.61,170.59,7.26973021]
[1747422701993,5.8591,170.61,170.58,5.8598]
[1747422704305,59.7,170.62,170.57,5.45229766]
[1747422704495,59.26,170.6,170.57,5.45229766]
[1747422704895,59.26,170.6,170.59,5.8596]
[1747422705595,59.26,170.6,170.59,11.03760995]
[1747422706797,59.7,170.62,170.6,5.8591]
[1747422706989,59.24,170.61,170.6,5.8591]
[1747422707994,59.24,170.61,170.6,11.03710995]
[1747422710589,59.7,170.62,170.61,5.8589]
[1747422710795,59.24,170.64,170.6,5.17800995]
[1747422711099,59.24,170.64,170.6,8.97410995]
[1747422711393,59.24,170.64,170.63,5.8583]
[1747422712196,59.24,170.64,170.63,11.03630995]
[1747422712395,59.22,170.66,170.65,5.8576]
[1747422712601,118.46,170.66,170.63,5.17800995]
[1747422712897,118.46,170.66,170.64,5.8578]
[1747422713300,118.46,170.66,170.63,5.17800995]
[1747422713502,118.46,170.66,170.64,5.17800995]
[1747422713898,124.3174,170.66,170.64,5.17800995]
[1747422715299,124.3174,170.66,170.65,5.17800995]
[1747422717897,118.46,170.66,170.65,5.17800995]
[1747422718899,124.3172,170.66,170.65,5.17800995]
[1747422719096,118.46,170.66,170.62,5.45229766]
[1747422719314,10.77984504,170.63,170.6,7.26973021]
[1747422719606,118.44,170.62,170.6,7.26973021]
[1747422720394,5.8589,170.61,170.6,7.26973021]
[1747422721504,5.8595,170.6,170.57,5.8602]
[1747422721900,5.86,170.58,170.56,7.26973021]
[1747422722099,59.22,170.58,170.56,7.26973021]
[1747422722607,59.22,170.58,170.56,13.13043021]
[1747422723904,59.22,170.58,170.56,5.8607]
[1747422724102,59.22,170.58,170.57,5.8603]
[1747422724306,69.99984504,170.62,170.55,3.8921]
[1747422724503,59.22,170.61,170.6,5.8593]
[1747422725808,59.22,170.61,170.59,5.8596]
[1747422726009,59.22,170.61,170.55,3.8921]
[1747422726206,5.8594,170.6,170.57,5.8601]
[1747422726605,69.99984504,170.61,170.55,3.8921]
[1747422726810,75.85884504,170.61,170.58,5.8598]
[1747422727410,69.99984504,170.61,170.55,3.8921]
[1747422728205,75.85894504,170.61,170.58,5.8598]
[1747422728410,69.99984504,170.61,170.55,3.8921]
[1747422728811,69.99984504,170.61,170.58,5.8599]
[1747422729411,75.85894504,170.61,170.58,5.8599]
[1747422730210,5.8594,170.6,170.58,5.8599]
[1747422731511,69.99984504,170.61,170.55,3.8921]
[1747422731717,69.99984504,170.61,170.53,7.26973021]
[1747422732017,5.861,170.55,170.53,7.26973021]
[1747422732315,59.22,170.54,170.53,7.26973021]
[1747422732814,59.22,170.54,170.5,13.01733021]
[1747422733122,59.22,170.54,170.53,5.8617]
[1747422733618,59.22,170.54,170.53,10.9763447]
[1747422735922,59.22,170.54,170.53,5.1146447]
[1747422737218,59.22,170.54,170.53,5.8617]
[1747422737619,10.77984504,170.58,170.5,5.7476]
[1747422737820,59.24,170.57,170.5,5.7476]
[1747422738123,118.46,170.59,170.5,5.7476]
[1747422738923,118.46,170.59,170.58,5.86]
[1747422740111,59.22,170.59,170.58,5.86]
[1747422740317,118.46,170.59,170.58,10.95783499]
[1747422742429,59.22,170.59,170.58,10.95783499]
[1747422742628,118.46,170.59,170.58,10.95783499]
[1747422746435,59.24,170.59,170.58,10.95783499]
[1747422750632,59.24,170.59,170.58,5.09783499]
[1747422751534,65.0996,170.59,170.58,5.09783499]
[1747422752339,59.24,170.59,170.58,5.09783499]
[1747422752938,59.24,170.59,170.58,10.95783499]
[1747422758350,59.22,170.62,170.61,5.8589]